[Event "Titled Tuesday Blitz January 18 2022"]
[White "Krivonosov, Oleg"]
[Black "Milchev, Nikolay"]
[WhiteFideId "11600349"]
[BlackFideId "2906090"]
[WhiteElo "2455"]
[BlackElo "2449"]
[Result "1/2-1/2"]
[Round "09"]
[TimeControl "180+1"]
[Date "2022.01.18"]
[WhiteClock "0:01:38"]
[BlackClock "0:01:52"]

1. Nf3 {[%clk 0:03:00]}  Nf6 {[%clk 0:02:59]} 2. c4 {[%clk 0:03:00]}  g6 {[%clk 0:03:00]} 3. Nc3 {[%clk 0:02:59]}  Bg7 {[%clk 0:03:01]} 4. e4 {[%clk 0:02:59]}  d6 {[%clk 0:03:02]} 5. d4 {[%clk 0:02:59]}  O-O {[%clk 0:03:02]} 6. Be2 {[%clk 0:02:59]}  c5 {[%clk 0:03:01]} 7. O-O {[%clk 0:02:58]}  Bg4 {[%clk 0:03:01]} 8. d5 {[%clk 0:02:57]}  b5 {[%clk 0:03:01]} 9. cxb5 {[%clk 0:02:54]}  a6 {[%clk 0:03:01]} 10. bxa6 {[%clk 0:02:51]}  Bxf3 {[%clk 0:03:00]} 11. Bxf3 {[%clk 0:02:50]}  Nfd7 {[%clk 0:03:01]} 12. Be2 {[%clk 0:02:41]}  Nxa6 {[%clk 0:03:00]} 13. Bb5 {[%clk 0:02:40]}  Qc7 {[%clk 0:02:59]} 14. Bg5 {[%clk 0:02:35]}  Nb6 {[%clk 0:02:48]} 15. a4 {[%clk 0:02:31]}  Rfb8 {[%clk 0:02:48]} 16. Qe2 {[%clk 0:02:30]}  Nb4 {[%clk 0:02:44]} 17. Rfc1 {[%clk 0:02:20]}  h6 {[%clk 0:02:29]} 18. Bf4 {[%clk 0:02:16]}  Nd7 {[%clk 0:02:24]} 19. h3 {[%clk 0:02:07]}  Ne5 {[%clk 0:02:23]} 20. Rab1 {[%clk 0:02:01]}  g5 {[%clk 0:02:22]} 21. Bd2 {[%clk 0:01:58]}  c4 {[%clk 0:02:20]} 22. Be3 {[%clk 0:01:42]}  Ned3 {[%clk 0:02:11]} 23. Rd1 {[%clk 0:01:38]}  Rc8 {[%clk 0:01:52]} 1/2-1/2


[Site "https://www.chess.com"]

[Event "Titled Tuesday Blitz January 18 2022"]
[White "Lomaia, Diana"]
[Black "Yang, Kaiqi"]
[WhiteFideId "13612476"]
[BlackFideId "8604398"]
[WhiteElo "1744"]
[BlackElo "2373"]
[Result "0-1"]
[Round "09"]
[TimeControl "180+1"]
[Date "2022.01.18"]
[WhiteClock "0:00:08"]
[BlackClock "0:00:22"]

1. d4 {[%clk 0:03:00]}  d5 {[%clk 0:02:59]} 2. Nf3 {[%clk 0:03:01]}  e6 {[%clk 0:02:59]} 3. c4 {[%clk 0:03:01]}  a6 {[%clk 0:02:58]} 4. cxd5 {[%clk 0:02:58]}  exd5 {[%clk 0:02:59]} 5. Nc3 {[%clk 0:02:58]}  Nf6 {[%clk 0:02:59]} 6. Bg5 {[%clk 0:02:58]}  Be6 {[%clk 0:02:59]} 7. e3 {[%clk 0:02:58]}  Nbd7 {[%clk 0:02:58]} 8. Bd3 {[%clk 0:02:58]}  c6 {[%clk 0:02:53]} 9. O-O {[%clk 0:02:58]}  Bd6 {[%clk 0:02:53]} 10. Qc2 {[%clk 0:02:49]}  Qc7 {[%clk 0:02:53]} 11. Rfe1 {[%clk 0:02:43]}  O-O {[%clk 0:02:52]} 12. e4 {[%clk 0:02:40]}  dxe4 {[%clk 0:02:49]} 13. Nxe4 {[%clk 0:02:39]}  Nxe4 {[%clk 0:02:48]} 14. Bxe4 {[%clk 0:02:40]}  h6 {[%clk 0:02:47]} 15. Bh4 {[%clk 0:02:38]}  Rfe8 {[%clk 0:02:39]} 16. Rac1 {[%clk 0:02:37]}  Nb6 {[%clk 0:02:39]} 17. Bg3 {[%clk 0:02:18]}  Bxg3 {[%clk 0:02:38]} 18. hxg3 {[%clk 0:02:15]}  Bd5 {[%clk 0:02:34]} 19. Bxd5 {[%clk 0:02:04]}  Nxd5 {[%clk 0:02:33]} 20. Qc5 {[%clk 0:02:04]}  Qd7 {[%clk 0:02:13]} 21. Ne5 {[%clk 0:01:53]}  Qf5 {[%clk 0:02:13]} 22. g4 {[%clk 0:01:39]}  Qg5 {[%clk 0:02:12]} 23. Qd6 {[%clk 0:01:10]}  Rad8 {[%clk 0:02:05]} 24. Nd7 {[%clk 0:01:06]}  Re6 {[%clk 0:01:45]} 25. Rxe6 {[%clk 0:01:02]}  Qxc1+ {[%clk 0:01:44]} 26. Kh2 {[%clk 0:00:58]}  fxe6 {[%clk 0:01:42]} 27. Qxe6+ {[%clk 0:00:41]}  Kh8 {[%clk 0:01:41]} 28. Ne5 {[%clk 0:00:39]}  Qf4+ {[%clk 0:01:40]} 29. Kg1 {[%clk 0:00:32]}  Qc1+ {[%clk 0:01:19]} 30. Kh2 {[%clk 0:00:30]}  Ra8 {[%clk 0:00:56]} 31. Ng6+ {[%clk 0:00:20]}  Kh7 {[%clk 0:00:56]} 32. Qf5 {[%clk 0:00:21]}  Qg5 {[%clk 0:00:39]} 33. Nf8+ {[%clk 0:00:18]}  Kg8 {[%clk 0:00:39]} 34. Qh7+ {[%clk 0:00:18]}  Kf7 {[%clk 0:00:33]} 35. Nd7 {[%clk 0:00:19]}  Re8 {[%clk 0:00:26]} 36. Ne5+ {[%clk 0:00:17]}  Rxe5 {[%clk 0:00:26]} 37. dxe5 {[%clk 0:00:18]}  Qxe5+ {[%clk 0:00:23]} 38. g3 {[%clk 0:00:18]}  Nf6 {[%clk 0:00:22]} 39. Qd3 {[%clk 0:00:17]}  Nxg4+ {[%clk 0:00:21]} 40. Kg2 {[%clk 0:00:09]}  Qd5+ {[%clk 0:00:21]} 41. Qxd5+ {[%clk 0:00:07]}  cxd5 {[%clk 0:00:22]} 42. Kf3 {[%clk 0:00:08]} 0-1


[Site "https://www.chess.com"]

[Event "Titled Tuesday Blitz January 18 2022"]
[White "Maksimovic, Bojan"]
[Black "Concio, Michael Jr."]
[WhiteFideId "14408120"]
[BlackFideId "5217873"]
[WhiteElo "2450"]
[BlackElo "1896"]
[Result "0-1"]
[Round "09"]
[TimeControl "180+1"]
[Date "2022.01.18"]
[WhiteClock "0:00:06"]
[BlackClock "0:00:03"]

1. d4 {[%clk 0:03:00]}  Nf6 {[%clk 0:02:59]} 2. c4 {[%clk 0:03:00]}  e5 {[%clk 0:02:56]} 3. dxe5 {[%clk 0:03:00]}  Ng4 {[%clk 0:02:56]} 4. Nf3 {[%clk 0:02:52]}  Nc6 {[%clk 0:02:56]} 5. Nc3 {[%clk 0:02:31]}  Ngxe5 {[%clk 0:02:41]} 6. Bf4 {[%clk 0:02:03]}  Nxf3+ {[%clk 0:02:32]} 7. exf3 {[%clk 0:02:04]}  Bb4 {[%clk 0:02:30]} 8. Bd3 {[%clk 0:02:00]}  Qe7+ {[%clk 0:02:22]} 9. Kf1 {[%clk 0:01:35]}  Bxc3 {[%clk 0:02:17]} 10. bxc3 {[%clk 0:01:36]}  d6 {[%clk 0:02:12]} 11. Rb1 {[%clk 0:01:30]}  O-O {[%clk 0:02:09]} 12. h4 {[%clk 0:01:25]}  Ne5 {[%clk 0:02:02]} 13. Be2 {[%clk 0:01:20]}  c6 {[%clk 0:01:56]} 14. Qd4 {[%clk 0:01:10]}  Bf5 {[%clk 0:01:49]} 15. Re1 {[%clk 0:01:06]}  Rfe8 {[%clk 0:01:43]} 16. Bd2 {[%clk 0:00:35]}  c5 {[%clk 0:01:01]} 17. Qf4 {[%clk 0:00:34]}  Be6 {[%clk 0:00:54]} 18. h5 {[%clk 0:00:29]}  f6 {[%clk 0:00:53]} 19. g4 {[%clk 0:00:20]}  Qf7 {[%clk 0:00:51]} 20. Kg2 {[%clk 0:00:13]}  Bxc4 {[%clk 0:00:46]} 21. Bxc4 {[%clk 0:00:09]}  Nxc4 {[%clk 0:00:47]} 22. Bc1 {[%clk 0:00:05]}  b5 {[%clk 0:00:43]} 23. h6 {[%clk 0:00:04]}  g6 {[%clk 0:00:41]} 24. Re4 {[%clk 0:00:04]}  Rxe4 {[%clk 0:00:32]} 25. Qxe4 {[%clk 0:00:05]}  d5 {[%clk 0:00:32]} 26. Qf4 {[%clk 0:00:04]}  Re8 {[%clk 0:00:32]} 27. Rd1 {[%clk 0:00:05]}  Re5 {[%clk 0:00:23]} 28. Qg3 {[%clk 0:00:04]}  Qe6 {[%clk 0:00:15]} 29. f4 {[%clk 0:00:03]}  Re1 {[%clk 0:00:15]} 30. Qf3 {[%clk 0:00:03]}  Rxd1 {[%clk 0:00:13]} 31. Qxd1 {[%clk 0:00:04]}  Qe4+ {[%clk 0:00:13]} 32. Kg3 {[%clk 0:00:04]}  d4 {[%clk 0:00:12]} 33. f3 {[%clk 0:00:04]}  Qd5 {[%clk 0:00:12]} 34. cxd4 {[%clk 0:00:05]}  cxd4 {[%clk 0:00:12]} 35. Qd3 {[%clk 0:00:05]}  Kf7 {[%clk 0:00:11]} 36. f5 {[%clk 0:00:05]}  gxf5 {[%clk 0:00:10]} 37. gxf5 {[%clk 0:00:04]}  Ne5 {[%clk 0:00:10]} 38. Qc2 {[%clk 0:00:04]}  Qxf3+ {[%clk 0:00:10]} 39. Kh2 {[%clk 0:00:03]}  Ng4+ {[%clk 0:00:07]} 40. Kg1 {[%clk 0:00:04]}  Qg3+ {[%clk 0:00:08]} 41. Kf1 {[%clk 0:00:04]}  Nh2+ {[%clk 0:00:08]} 42. Ke2 {[%clk 0:00:04]}  Qg2+ {[%clk 0:00:03]} 43. Kd3 {[%clk 0:00:04]}  Qxc2+ {[%clk 0:00:04]} 44. Kxc2 {[%clk 0:00:05]}  Ng4 {[%clk 0:00:04]} 45. Kd3 {[%clk 0:00:05]}  Ne5+ {[%clk 0:00:02]} 46. Kxd4 {[%clk 0:00:05]}  Ke7 {[%clk 0:00:03]} 47. Kc5 {[%clk 0:00:06]}  Nd3+ {[%clk 0:00:02]} 48. Kxb5 {[%clk 0:00:05]}  Nxc1 {[%clk 0:00:03]} 49. Ka6 {[%clk 0:00:06]}  Nxa2 {[%clk 0:00:03]} 0-1


[Site "https://www.chess.com"]

[Event "Titled Tuesday Blitz January 18 2022"]
[White "Maltsevskaya, Aleksandra"]
[Black "Csonka, Balazs"]
[WhiteFideId "24174041"]
[BlackFideId "742910"]
[WhiteElo "2283"]
[BlackElo "2404"]
[Result "0-1"]
[Round "09"]
[TimeControl "180+1"]
[Date "2022.01.18"]
[WhiteClock "0:00:14"]
[BlackClock "0:00:04"]

1. e4 {[%clk 0:02:57]}  c6 {[%clk 0:02:59]} 2. Nc3 {[%clk 0:02:55]}  d5 {[%clk 0:02:57]} 3. Nf3 {[%clk 0:02:55]}  Nf6 {[%clk 0:02:53]} 4. Qe2 {[%clk 0:02:55]}  Bg4 {[%clk 0:02:34]} 5. g3 {[%clk 0:02:41]}  e6 {[%clk 0:02:13]} 6. Bg2 {[%clk 0:02:38]}  Be7 {[%clk 0:01:51]} 7. O-O {[%clk 0:02:27]}  O-O {[%clk 0:01:49]} 8. d3 {[%clk 0:02:24]}  d4 {[%clk 0:01:27]} 9. Nb1 {[%clk 0:02:23]}  c5 {[%clk 0:01:24]} 10. a4 {[%clk 0:02:23]}  Nc6 {[%clk 0:01:23]} 11. Na3 {[%clk 0:02:24]}  e5 {[%clk 0:01:23]} 12. Nc4 {[%clk 0:02:23]}  Nd7 {[%clk 0:01:22]} 13. h3 {[%clk 0:02:23]}  Be6 {[%clk 0:01:22]} 14. b3 {[%clk 0:02:22]}  a6 {[%clk 0:01:17]} 15. Nh2 {[%clk 0:01:39]}  b5 {[%clk 0:01:09]} 16. Nd2 {[%clk 0:01:39]}  Nb4 {[%clk 0:01:02]} 17. Qd1 {[%clk 0:01:23]}  Qc7 {[%clk 0:00:37]} 18. f4 {[%clk 0:01:22]}  f6 {[%clk 0:00:37]} 19. f5 {[%clk 0:01:05]}  Bf7 {[%clk 0:00:37]} 20. g4 {[%clk 0:01:05]}  c4 {[%clk 0:00:34]} 21. bxc4 {[%clk 0:00:52]}  bxc4 {[%clk 0:00:35]} 22. g5 {[%clk 0:00:36]}  cxd3 {[%clk 0:00:31]} 23. g6 {[%clk 0:00:32]}  hxg6 {[%clk 0:00:30]} 24. fxg6 {[%clk 0:00:32]}  Bxg6 {[%clk 0:00:31]} 25. cxd3 {[%clk 0:00:32]}  Bf7 {[%clk 0:00:24]} 26. Ba3 {[%clk 0:00:24]}  a5 {[%clk 0:00:20]} 27. Bxb4 {[%clk 0:00:21]}  Bxb4 {[%clk 0:00:19]} 28. Rc1 {[%clk 0:00:22]}  Nc5 {[%clk 0:00:16]} 29. Rf3 {[%clk 0:00:18]}  Qd7 {[%clk 0:00:14]} 30. Nc4 {[%clk 0:00:17]}  Nxa4 {[%clk 0:00:11]} 31. Rg3 {[%clk 0:00:16]}  Nc3 {[%clk 0:00:09]} 32. Qf3 {[%clk 0:00:17]}  Bxc4 {[%clk 0:00:05]} 33. dxc4 {[%clk 0:00:18]}  Rad8 {[%clk 0:00:03]} 34. Ng4 {[%clk 0:00:18]}  d3 {[%clk 0:00:03]} 35. Nxf6+ {[%clk 0:00:10]}  Rxf6 {[%clk 0:00:03]} 36. Qxf6 {[%clk 0:00:11]}  Rf8 {[%clk 0:00:03]} 37. Qxe5 {[%clk 0:00:03]}  d2 {[%clk 0:00:03]} 38. Rf1 {[%clk 0:00:02]}  Rxf1+ {[%clk 0:00:01]} 39. Bxf1 {[%clk 0:00:03]}  d1=Q {[%clk 0:00:02]} 40. h4 {[%clk 0:00:03]}  Q1d4+ {[%clk 0:00:02]} 41. Qxd4 {[%clk 0:00:04]}  Qxd4+ {[%clk 0:00:03]} 42. Kg2 {[%clk 0:00:04]}  Nxe4 {[%clk 0:00:03]} 43. Rf3 {[%clk 0:00:05]}  Qd2+ {[%clk 0:00:03]} 44. Kh3 {[%clk 0:00:05]}  Bd6 {[%clk 0:00:03]} 45. Kg4 {[%clk 0:00:04]}  Nf6+ {[%clk 0:00:03]} 46. Kf5 {[%clk 0:00:03]}  Qd4 {[%clk 0:00:03]} 47. Ke6 {[%clk 0:00:02]}  Qe4+ {[%clk 0:00:03]} 48. Kxd6 {[%clk 0:00:02]}  Qxf3 {[%clk 0:00:03]} 49. c5 {[%clk 0:00:01]}  Qxf1 {[%clk 0:00:03]} 50. c6 {[%clk 0:00:02]}  Qd3+ {[%clk 0:00:04]} 51. Kc7 {[%clk 0:00:02]}  Qc4 {[%clk 0:00:04]} 52. Kb7 {[%clk 0:00:03]}  a4 {[%clk 0:00:04]} 53. c7 {[%clk 0:00:03]}  Qb5+ {[%clk 0:00:04]} 54. Ka8 {[%clk 0:00:03]}  Qa6+ {[%clk 0:00:04]} 55. Kb8 {[%clk 0:00:04]}  Qb6+ {[%clk 0:00:05]} 56. Kc8 {[%clk 0:00:04]}  Nd5 {[%clk 0:00:05]} 57. Kd8 {[%clk 0:00:04]}  Nxc7 {[%clk 0:00:06]} 58. Kd7 {[%clk 0:00:04]}  a3 {[%clk 0:00:06]} 59. h5 {[%clk 0:00:04]}  a2 {[%clk 0:00:06]} 60. h6 {[%clk 0:00:04]}  gxh6 {[%clk 0:00:07]} 61. Kc8 {[%clk 0:00:05]}  h5 {[%clk 0:00:07]} 62. Kd7 {[%clk 0:00:05]}  h4 {[%clk 0:00:08]} 63. Kd8 {[%clk 0:00:06]}  h3 {[%clk 0:00:09]} 64. Kc8 {[%clk 0:00:07]}  h2 {[%clk 0:00:09]} 65. Kd7 {[%clk 0:00:08]}  Kf7 {[%clk 0:00:09]} 66. Kd8 {[%clk 0:00:09]}  Nd5+ {[%clk 0:00:08]} 67. Kc8 {[%clk 0:00:09]}  Qc6+ {[%clk 0:00:07]} 68. Kb8 {[%clk 0:00:09]}  h1=Q {[%clk 0:00:07]} 69. Ka7 {[%clk 0:00:09]}  Ke6 {[%clk 0:00:08]} 70. Kb8 {[%clk 0:00:10]}  Nc7 {[%clk 0:00:07]} 71. Ka7 {[%clk 0:00:11]}  Nb5+ {[%clk 0:00:06]} 72. Kb8 {[%clk 0:00:11]}  Nd6 {[%clk 0:00:06]} 73. Ka7 {[%clk 0:00:12]}  Qhc1 {[%clk 0:00:05]} 74. Kb8 {[%clk 0:00:13]}  Qb1+ {[%clk 0:00:04]} 75. Ka7 {[%clk 0:00:14]}  Nb5+ {[%clk 0:00:04]} 76. Kb8 {[%clk 0:00:14]}  Na7+ {[%clk 0:00:04]} 77. Kxa7 {[%clk 0:00:14]}  a1=Q# {[%clk 0:00:04]} 0-1


[Site "https://www.chess.com"]

[Event "Titled Tuesday Blitz January 18 2022"]
[White "Manukyan, Artyom"]
[Black "Okike, David"]
[WhiteFideId "13305786"]
[BlackFideId "8500134"]
[WhiteElo "2034"]
[BlackElo "2232"]
[Result "0-1"]
[Round "09"]
[TimeControl "180+1"]
[Date "2022.01.18"]
[WhiteClock "0:00:04"]
[BlackClock "0:01:08"]

1. e4 {[%clk 0:03:00]}  c5 {[%clk 0:02:59]} 2. Nc3 {[%clk 0:03:00]}  Nc6 {[%clk 0:02:58]} 3. Bb5 {[%clk 0:03:00]}  Nd4 {[%clk 0:02:58]} 4. Nf3 {[%clk 0:03:01]}  g6 {[%clk 0:02:58]} 5. O-O {[%clk 0:03:00]}  Bg7 {[%clk 0:02:57]} 6. Nxd4 {[%clk 0:03:01]}  cxd4 {[%clk 0:02:50]} 7. Ne2 {[%clk 0:03:01]}  Qb6 {[%clk 0:02:44]} 8. Bc4 {[%clk 0:03:00]}  e6 {[%clk 0:02:44]} 9. d3 {[%clk 0:03:00]}  Ne7 {[%clk 0:02:44]} 10. Bb3 {[%clk 0:02:59]}  O-O {[%clk 0:02:43]} 11. f4 {[%clk 0:02:59]}  f5 {[%clk 0:02:39]} 12. e5 {[%clk 0:02:54]}  d6 {[%clk 0:02:37]} 13. exd6 {[%clk 0:02:54]}  Qxd6 {[%clk 0:02:37]} 14. Bd2 {[%clk 0:02:52]}  Nd5 {[%clk 0:02:35]} 15. Qe1 {[%clk 0:02:51]}  Bd7 {[%clk 0:02:32]} 16. Qf2 {[%clk 0:02:51]}  Ne3 {[%clk 0:02:22]} 17. Bxe3 {[%clk 0:02:38]}  dxe3 {[%clk 0:02:22]} 18. Qxe3 {[%clk 0:02:39]}  Bxb2 {[%clk 0:02:21]} 19. Rab1 {[%clk 0:02:40]}  Bg7 {[%clk 0:02:21]} 20. d4 {[%clk 0:02:36]}  b6 {[%clk 0:02:19]} 21. Rbd1 {[%clk 0:02:34]}  Kh8 {[%clk 0:02:18]} 22. Kh1 {[%clk 0:02:32]}  Rae8 {[%clk 0:02:16]} 23. c4 {[%clk 0:02:31]}  Bc6 {[%clk 0:02:15]} 24. Qd2 {[%clk 0:02:29]}  Bb7 {[%clk 0:02:08]} 25. Nc3 {[%clk 0:02:27]}  a6 {[%clk 0:02:05]} 26. Rfe1 {[%clk 0:02:25]}  Bh6 {[%clk 0:02:03]} 27. Rf1 {[%clk 0:02:11]}  Rd8 {[%clk 0:02:02]} 28. Qe3 {[%clk 0:02:05]}  Bg7 {[%clk 0:01:56]} 29. Ne2 {[%clk 0:01:02]}  Rfe8 {[%clk 0:01:47]} 30. Rfe1 {[%clk 0:00:44]}  a5 {[%clk 0:01:40]} 31. Qf2 {[%clk 0:00:43]}  Qb4 {[%clk 0:01:32]} 32. c5 {[%clk 0:00:20]}  a4 {[%clk 0:01:26]} 33. Bc2 {[%clk 0:00:20]}  Bd5 {[%clk 0:01:23]} 34. Rb1 {[%clk 0:00:12]}  Qc4 {[%clk 0:01:19]} 35. Rec1 {[%clk 0:00:09]}  bxc5 {[%clk 0:01:11]} 36. Bb3 {[%clk 0:00:04]}  Qd3 {[%clk 0:01:08]} 37. Bxd5 {[%clk 0:00:04]}  exd5 {[%clk 0:01:08]} 0-1


[Site "https://www.chess.com"]

[Event "Titled Tuesday Blitz January 18 2022"]
[White "Musovic, Armin"]
[Black "Leitao, Rafael"]
[WhiteFideId "939935"]
[BlackFideId "2101246"]
[WhiteElo "2250"]
[BlackElo "2609"]
[Result "1-0"]
[Round "09"]
[TimeControl "180+1"]
[Date "2022.01.18"]
[WhiteClock "0:00:57"]
[BlackClock "0:00:12"]

1. a3 {[%clk 0:03:00]}  a6 {[%clk 0:02:57]} 2. Nc3 {[%clk 0:03:00]}  d5 {[%clk 0:02:56]} 3. e4 {[%clk 0:03:01]}  d4 {[%clk 0:02:56]} 4. Nce2 {[%clk 0:03:01]}  e5 {[%clk 0:02:56]} 5. Ng3 {[%clk 0:03:02]}  g6 {[%clk 0:02:54]} 6. Bc4 {[%clk 0:03:02]}  Bg7 {[%clk 0:02:51]} 7. d3 {[%clk 0:03:02]}  Nf6 {[%clk 0:02:45]} 8. N1e2 {[%clk 0:03:02]}  h5 {[%clk 0:02:44]} 9. h3 {[%clk 0:03:01]}  h4 {[%clk 0:02:43]} 10. Nf1 {[%clk 0:03:02]}  Nh5 {[%clk 0:02:33]} 11. Nh2 {[%clk 0:03:00]}  Qe7 {[%clk 0:02:32]} 12. O-O {[%clk 0:02:58]}  Be6 {[%clk 0:02:25]} 13. Bxe6 {[%clk 0:02:56]}  Qxe6 {[%clk 0:02:26]} 14. f4 {[%clk 0:02:53]}  Nc6 {[%clk 0:02:07]} 15. fxe5 {[%clk 0:02:36]}  Nxe5 {[%clk 0:01:59]} 16. Nf4 {[%clk 0:02:22]}  Nxf4 {[%clk 0:01:56]} 17. Bxf4 {[%clk 0:02:23]}  O-O-O {[%clk 0:01:49]} 18. Bxe5 {[%clk 0:02:23]}  Bxe5 {[%clk 0:01:49]} 19. Qf3 {[%clk 0:02:15]}  Rd7 {[%clk 0:01:20]} 20. Ng4 {[%clk 0:02:11]}  Bg7 {[%clk 0:01:20]} 21. Nf6 {[%clk 0:02:07]}  Bxf6 {[%clk 0:01:15]} 22. Qxf6 {[%clk 0:02:08]}  Qxf6 {[%clk 0:01:15]} 23. Rxf6 {[%clk 0:02:09]}  Kd8 {[%clk 0:01:14]} 24. Raf1 {[%clk 0:02:05]}  Ke8 {[%clk 0:01:12]} 25. g4 {[%clk 0:01:48]}  hxg3 {[%clk 0:01:10]} 26. Kg2 {[%clk 0:01:48]}  Rh5 {[%clk 0:01:06]} 27. Kxg3 {[%clk 0:01:47]}  Rc5 {[%clk 0:01:03]} 28. R1f2 {[%clk 0:01:42]}  Kf8 {[%clk 0:01:01]} 29. Rxg6 {[%clk 0:01:30]}  Rxc2 {[%clk 0:00:58]} 30. Rg8+ {[%clk 0:01:21]}  Kxg8 {[%clk 0:00:58]} 31. Rxc2 {[%clk 0:01:22]}  Kg7 {[%clk 0:00:55]} 32. Rc5 {[%clk 0:01:21]}  c6 {[%clk 0:00:53]} 33. h4 {[%clk 0:01:20]}  Rd6 {[%clk 0:00:52]} 34. Kf4 {[%clk 0:01:12]}  Rf6+ {[%clk 0:00:52]} 35. Ke5 {[%clk 0:01:12]}  Rf2 {[%clk 0:00:52]} 36. b4 {[%clk 0:01:08]}  Rh2 {[%clk 0:00:47]} 37. Kxd4 {[%clk 0:01:09]}  Rxh4 {[%clk 0:00:47]} 38. Rg5+ {[%clk 0:01:08]}  Kf6 {[%clk 0:00:47]} 39. Rg8 {[%clk 0:01:08]}  Rh1 {[%clk 0:00:44]} 40. Rb8 {[%clk 0:01:07]}  Ra1 {[%clk 0:00:43]} 41. Rxb7 {[%clk 0:01:08]}  Rxa3 {[%clk 0:00:43]} 42. Rb6 {[%clk 0:01:09]}  Ke7 {[%clk 0:00:39]} 43. Rxc6 {[%clk 0:01:08]}  Kd7 {[%clk 0:00:39]} 44. Rf6 {[%clk 0:01:06]}  Ke7 {[%clk 0:00:39]} 45. Rb6 {[%clk 0:01:07]}  Ra1 {[%clk 0:00:36]} 46. Ke5 {[%clk 0:01:05]}  Rb1 {[%clk 0:00:27]} 47. d4 {[%clk 0:00:58]}  f6+ {[%clk 0:00:23]} 48. Rxf6 {[%clk 0:00:58]}  Ra1 {[%clk 0:00:12]} 49. Rb6 {[%clk 0:00:57]} 1-0


[Site "https://www.chess.com"]

[Event "Titled Tuesday Blitz January 18 2022"]
[White "Nazaretyan, Tigran"]
[Black "Dounis, Alexandros"]
[WhiteFideId "24162345"]
[BlackFideId "4213238"]
[WhiteElo "2192"]
[BlackElo "2195"]
[Result "0-1"]
[Round "09"]
[TimeControl "180+1"]
[Date "2022.01.18"]
[WhiteClock "0:00:11"]
[BlackClock "0:00:47"]

1. d4 {[%clk 0:03:00]}  Nf6 {[%clk 0:03:00]} 2. c4 {[%clk 0:02:31]}  g6 {[%clk 0:02:58]} 3. Nc3 {[%clk 0:02:31]}  d5 {[%clk 0:02:58]} 4. Nf3 {[%clk 0:02:30]}  Bg7 {[%clk 0:02:58]} 5. Bg5 {[%clk 0:02:29]}  dxc4 {[%clk 0:02:58]} 6. e4 {[%clk 0:02:29]}  c5 {[%clk 0:02:56]} 7. d5 {[%clk 0:02:28]}  h6 {[%clk 0:02:52]} 8. Bxf6 {[%clk 0:02:26]}  Bxf6 {[%clk 0:02:53]} 9. e5 {[%clk 0:02:26]}  Bg7 {[%clk 0:02:53]} 10. Bxc4 {[%clk 0:02:25]}  O-O {[%clk 0:02:53]} 11. h3 {[%clk 0:02:18]}  a6 {[%clk 0:02:53]} 12. a4 {[%clk 0:02:17]}  Nd7 {[%clk 0:02:51]} 13. O-O {[%clk 0:02:04]}  Nxe5 {[%clk 0:02:49]} 14. Nxe5 {[%clk 0:01:57]}  Bxe5 {[%clk 0:02:50]} 15. Re1 {[%clk 0:01:50]}  Bg7 {[%clk 0:02:48]} 16. Qe2 {[%clk 0:01:49]}  Re8 {[%clk 0:02:39]} 17. Rad1 {[%clk 0:01:48]}  Bd7 {[%clk 0:02:37]} 18. Qf3 {[%clk 0:01:42]}  Qb6 {[%clk 0:02:27]} 19. b3 {[%clk 0:01:32]}  Qb4 {[%clk 0:02:16]} 20. d6 {[%clk 0:01:26]}  e6 {[%clk 0:02:12]} 21. Ne4 {[%clk 0:01:26]}  b5 {[%clk 0:02:06]} 22. Bf1 {[%clk 0:01:17]}  bxa4 {[%clk 0:01:57]} 23. bxa4 {[%clk 0:01:16]}  Bxa4 {[%clk 0:01:57]} 24. Rb1 {[%clk 0:01:16]}  Qd4 {[%clk 0:01:55]} 25. Rb7 {[%clk 0:01:10]}  Rf8 {[%clk 0:01:47]} 26. Re2 {[%clk 0:00:47]}  Bc6 {[%clk 0:01:43]} 27. Rb6 {[%clk 0:00:43]}  Bd5 {[%clk 0:01:36]} 28. Qf4 {[%clk 0:00:27]}  f5 {[%clk 0:01:27]} 29. d7 {[%clk 0:00:19]}  fxe4 {[%clk 0:01:16]} 30. Qc7 {[%clk 0:00:18]}  Qe5 {[%clk 0:01:03]} 31. Qxc5 {[%clk 0:00:17]}  Qd4 {[%clk 0:00:57]} 32. Qa5 {[%clk 0:00:14]}  Rad8 {[%clk 0:00:51]} 33. Rd2 {[%clk 0:00:14]}  Qc3 {[%clk 0:00:50]} 34. Qa2 {[%clk 0:00:10]}  Bxa2 {[%clk 0:00:49]} 35. Rd3 {[%clk 0:00:10]}  exd3 {[%clk 0:00:47]} 36. Rb3 {[%clk 0:00:11]}  Bxb3 {[%clk 0:00:47]} 0-1


[Site "https://www.chess.com"]